[Event "Early-Titled-Tuesday-Blitz-June-18-2024"]
[Site "Chess.com"]
[Date "2024.06.18"]
[Round "4"]
[White "Martial2008"]
[Black "milovichalex"]
[Result "1-0"]
[WhiteElo "2635"]
[BlackElo "2412"]
[TimeControl "180+1"]
[EndTime "8:39:59 PDT"]
[Termination "Martial2008 won by resignation"]

1. d4 {[%clk 0:03:00.9]} 1... Nf6 {[%clk 0:02:59.8]} 2. Nf3 {[%clk 0:03:01.8]}
2... d5 {[%clk 0:02:59.7]} 3. Bf4 {[%clk 0:03:01.2]} 3... c5 {[%clk 0:02:59.8]}
4. e3 {[%clk 0:03:01.5]} 4... Nc6 {[%clk 0:03:00.3]} 5. Nbd2 {[%clk 0:03:02]}
5... Qb6 {[%clk 0:03:00.2]} 6. dxc5 {[%clk 0:03:02.3]} 6... Qxc5 {[%clk
0:03:00.3]} 7. c4 {[%clk 0:03:00.1]} 7... d4 {[%clk 0:02:58.4]} 8. Be2 {[%clk
0:02:52.8]} 8... Nh5 {[%clk 0:02:50.5]} 9. exd4 {[%clk 0:02:49.5]} 9... Nxd4
{[%clk 0:02:47.2]} 10. Be3 {[%clk 0:02:49.4]} 10... e5 {[%clk 0:02:39.1]} 11.
O-O {[%clk 0:02:33.4]} 11... Nf6 {[%clk 0:02:35.7]} 12. Re1 {[%clk 0:02:30.4]}
12... Be7 {[%clk 0:02:33]} 13. Nxd4 {[%clk 0:02:25.2]} 13... exd4 {[%clk
0:02:32.6]} 14. Nb3 {[%clk 0:02:25.5]} 14... dxe3 {[%clk 0:02:23.6]} 15. Nxc5
{[%clk 0:02:24.6]} 15... exf2+ {[%clk 0:02:24]} 16. Kxf2 {[%clk 0:02:22.5]}
16... Bxc5+ {[%clk 0:02:24.2]} 17. Kf1 {[%clk 0:02:21.4]} 17... O-O {[%clk
0:02:24.4]} 18. Bf3 {[%clk 0:02:18.4]} 18... Be6 {[%clk 0:02:20.8]} 19. Qc2
{[%clk 0:02:16.8]} 19... Rac8 {[%clk 0:02:08.2]} 20. b3 {[%clk 0:02:15.1]} 20...
b5 {[%clk 0:02:07.4]} 21. Rxe6 {[%clk 0:02:00.2]} 21... fxe6 {[%clk 0:02:06.9]}
22. Re1 {[%clk 0:02:00.6]} 22... Ng4 {[%clk 0:02:02.3]} 23. Qe4 {[%clk
0:01:51.8]} 23... Nxh2+ {[%clk 0:01:48.2]} 24. Ke2 {[%clk 0:01:50.8]} 24... Nxf3
{[%clk 0:01:48.5]} 25. gxf3 {[%clk 0:01:51.7]} 25... bxc4 {[%clk 0:01:48.7]} 26.
bxc4 {[%clk 0:01:49.2]} 26... e5 {[%clk 0:01:47.9]} 27. Rh1 {[%clk 0:01:45.9]}
27... g6 {[%clk 0:01:44.7]} 28. Qd5+ {[%clk 0:01:41.1]} 28... Rf7 {[%clk
0:01:42.1]} 29. Rxh7 {[%clk 0:01:40.1]} 29... Kxh7 {[%clk 0:01:38.6]} 30. Qxf7+
{[%clk 0:01:39.8]} 30... Kh6 {[%clk 0:01:38.6]} 31. Qe6 {[%clk 0:01:36.7]} 31...
Rc7 {[%clk 0:01:34.6]} 32. Qh3+ {[%clk 0:01:34.4]} 32... Kg7 {[%clk 0:01:34.4]}
33. Qe6 {[%clk 0:01:32.4]} 33... Bd4 {[%clk 0:01:31.4]} 34. Qd5 {[%clk
0:01:31.4]} 34... Kh6 {[%clk 0:01:22.5]} 35. Kd3 {[%clk 0:01:29.4]} 35... Rc5
{[%clk 0:01:18.2]} 36. Qg8 {[%clk 0:01:28.6]} 36... Kg5 {[%clk 0:01:13.5]} 37.
Qd8+ {[%clk 0:01:26.4]} 37... Kf5 {[%clk 0:01:10.6]} 38. Qd7+ {[%clk 0:01:25.3]}
38... Kg5 {[%clk 0:01:07]} 39. Qxa7 {[%clk 0:01:24.4]} 39... Kh4 {[%clk
0:00:43.4]} 40. a4 {[%clk 0:01:21.2]} 40... g5 {[%clk 0:00:43.3]} 41. a5 {[%clk
0:01:19.7]} 41... Kg3 {[%clk 0:00:43.3]} 42. a6 {[%clk 0:01:16.7]} 42... Kxf3
{[%clk 0:00:40.3]} 43. Qb7+ {[%clk 0:01:16.7]} 43... Kf4 {[%clk 0:00:37.4]} 44.
Qe4+ {[%clk 0:01:16]} 44... Kg3 {[%clk 0:00:37.4]} 45. a7 {[%clk 0:01:16.5]}
45... Rb5 {[%clk 0:00:37.7]} 46. cxb5 {[%clk 0:01:15.1]} 1-0

[Event "Early-Titled-Tuesday-Blitz-June-18-2024"]
[Site "Chess.com"]
[Date "2024.06.18"]
[Round "4"]
[White "HouseOfDurin"]
[Black "luachess1"]
[Result "1-0"]
[WhiteElo "2296"]
[BlackElo "1908"]
[TimeControl "180+1"]
[EndTime "8:39:59 PDT"]
[Termination "HouseOfDurin won by checkmate"]

1. d4 {[%clk 0:03:00.9]} 1... Nf6 {[%clk 0:02:59.2]} 2. Bg5 {[%clk 0:03:01.2]}
2... e6 {[%clk 0:02:56.1]} 3. e4 {[%clk 0:03:01]} 3... h6 {[%clk 0:02:53.8]} 4.
Bxf6 {[%clk 0:03:00.6]} 4... Qxf6 {[%clk 0:02:51.6]} 5. Nc3 {[%clk 0:03:01.3]}
5... Nc6 {[%clk 0:02:50]} 6. Nf3 {[%clk 0:03:00.7]} 6... Bb4 {[%clk 0:02:43.7]}
7. Qd3 {[%clk 0:03:00.7]} 7... Bxc3+ {[%clk 0:02:37.3]} 8. Qxc3 {[%clk
0:03:01.6]} 8... O-O {[%clk 0:02:36.9]} 9. e5 {[%clk 0:02:55.2]} 9... Qe7 {[%clk
0:02:35.1]} 10. O-O-O {[%clk 0:02:52.4]} 10... d6 {[%clk 0:02:22.6]} 11. Qe3
{[%clk 0:02:50.9]} 11... d5 {[%clk 0:02:13.2]} 12. c3 {[%clk 0:02:45.6]} 12...
Nd8 {[%clk 0:02:01.1]} 13. Bd3 {[%clk 0:02:45.3]} 13... c5 {[%clk 0:01:53.5]}
14. dxc5 {[%clk 0:02:40.3]} 14... Bd7 {[%clk 0:01:46.3]} 15. Kb1 {[%clk
0:02:37.8]} 15... Rc8 {[%clk 0:01:44.2]} 16. b4 {[%clk 0:02:37.2]} 16... Ba4
{[%clk 0:01:39]} 17. Rd2 {[%clk 0:02:31.7]} 17... a6 {[%clk 0:01:34.3]} 18. Nd4
{[%clk 0:02:19.1]} 18... Nc6 {[%clk 0:01:15.6]} 19. f4 {[%clk 0:02:18.1]} 19...
Nxd4 {[%clk 0:01:02.5]} 20. cxd4 {[%clk 0:02:17.7]} 20... Qd7 {[%clk 0:01:02.8]}
21. g4 {[%clk 0:02:13.8]} 21... Bb5 {[%clk 0:00:59.6]} 22. f5 {[%clk 0:02:11.7]}
22... exf5 {[%clk 0:00:56.3]} 23. gxf5 {[%clk 0:02:12.6]} 23... Bxd3+ {[%clk
0:00:54.6]} 24. Qxd3 {[%clk 0:02:13.2]} 24... Rfe8 {[%clk 0:00:49.4]} 25. Rg1
{[%clk 0:02:10.4]} 25... Kh8 {[%clk 0:00:42.5]} 26. Rdg2 {[%clk 0:02:04.9]}
26... Rg8 {[%clk 0:00:39.7]} 27. f6 {[%clk 0:02:00.9]} 27... g6 {[%clk 0:00:39]}
28. h4 {[%clk 0:01:56.3]} 28... Qf5 {[%clk 0:00:32]} 29. Qxf5 {[%clk 0:01:55.6]}
29... gxf5 {[%clk 0:00:32.9]} 30. Rxg8+ {[%clk 0:01:54.1]} 30... Rxg8 {[%clk
0:00:33.4]} 31. Rxg8+ {[%clk 0:01:54.5]} 31... Kxg8 {[%clk 0:00:33.9]} 32. Kc2
{[%clk 0:01:54.4]} 32... Kh7 {[%clk 0:00:34.5]} 33. Kd3 {[%clk 0:01:54.1]} 33...
Kg6 {[%clk 0:00:35.1]} 34. Ke3 {[%clk 0:01:53.4]} 34... Kh5 {[%clk 0:00:31.1]}
35. Kf4 {[%clk 0:01:53.6]} 35... Kxh4 {[%clk 0:00:30.6]} 36. e6 {[%clk
0:01:53.6]} 36... Kh5 {[%clk 0:00:17.4]} 37. e7 {[%clk 0:01:52.6]} 37... Kg6
{[%clk 0:00:14.9]} 38. e8=Q {[%clk 0:01:52.3]} 38... Kxf6 {[%clk 0:00:15.8]} 39.
Qe5+ {[%clk 0:01:49.9]} 39... Kg6 {[%clk 0:00:15]} 40. Qxf5+ {[%clk 0:01:50]}
40... Kg7 {[%clk 0:00:14.4]} 41. Qxd5 {[%clk 0:01:50.2]} 41... h5 {[%clk
0:00:14.1]} 42. Qxh5 {[%clk 0:01:49.8]} 42... Kg8 {[%clk 0:00:13.6]} 43. Kf5
{[%clk 0:01:49.1]} 43... Kg7 {[%clk 0:00:13.6]} 44. Qg5+ {[%clk 0:01:48.8]}
44... Kf8 {[%clk 0:00:13.1]} 45. Kf6 {[%clk 0:01:49.2]} 45... Ke8 {[%clk
0:00:13]} 46. Qd5 {[%clk 0:01:47.2]} 46... Kf8 {[%clk 0:00:12.6]} 47. Qd8#
{[%clk 0:01:46.1]} 1-0

[Event "Early-Titled-Tuesday-Blitz-June-18-2024"]
[Site "Chess.com"]
[Date "2024.06.18"]
[Round "4"]
[White "Chempiblinka"]
[Black "myburger"]
[Result "0-1"]
[WhiteElo "2354"]
[BlackElo "2535"]
[TimeControl "180+1"]
[EndTime "8:40:00 PDT"]
[Termination "myburger won on time"]

1. Nf3 {[%clk 0:02:58.6]} 1... c5 {[%clk 0:02:57.9]} 2. g3 {[%clk 0:02:58.6]}
2... g6 {[%clk 0:02:54.9]} 3. Bg2 {[%clk 0:02:57.8]} 3... Bg7 {[%clk 0:02:55.3]}
4. O-O {[%clk 0:02:57.8]} 4... Nc6 {[%clk 0:02:55.2]} 5. c4 {[%clk 0:02:57.8]}
5... e5 {[%clk 0:02:51.8]} 6. d3 {[%clk 0:02:57.5]} 6... d6 {[%clk 0:02:50.9]}
7. Nc3 {[%clk 0:02:57.5]} 7... f5 {[%clk 0:02:50.3]} 8. a3 {[%clk 0:02:49.6]}
8... Nge7 {[%clk 0:02:50.1]} 9. Rb1 {[%clk 0:02:49.5]} 9... a5 {[%clk
0:02:49.9]} 10. Ne1 {[%clk 0:02:48.2]} 10... O-O {[%clk 0:02:49]} 11. Nc2 {[%clk
0:02:46.9]} 11... f4 {[%clk 0:02:48.8]} 12. b4 {[%clk 0:02:20.1]} 12... axb4
{[%clk 0:02:41.7]} 13. axb4 {[%clk 0:02:21]} 13... cxb4 {[%clk 0:02:34.7]} 14.
Nxb4 {[%clk 0:02:20.3]} 14... Nxb4 {[%clk 0:02:34.7]} 15. Rxb4 {[%clk 0:02:20]}
15... Nc6 {[%clk 0:02:35.4]} 16. Rb1 {[%clk 0:02:16.7]} 16... Qa5 {[%clk
0:02:34.1]} 17. Nd5 {[%clk 0:02:15.5]} 17... Bg4 {[%clk 0:02:20.4]} 18. h3
{[%clk 0:01:40]} 18... Bxe2 {[%clk 0:02:13.5]} 19. Qxe2 {[%clk 0:01:34.6]} 19...
f3 {[%clk 0:02:13.5]} 20. Ne7+ {[%clk 0:00:44.1]} 20... Kh8 {[%clk 0:01:56.6]}
21. Bxf3 {[%clk 0:00:44.1]} 21... Nd4 {[%clk 0:01:52.4]} 22. Qe4 {[%clk
0:00:40.8]} 22... Nxf3+ {[%clk 0:01:42.7]} 23. Kg2 {[%clk 0:00:41.3]} 23... Nd2
{[%clk 0:01:40.7]} 24. Bxd2 {[%clk 0:00:41.1]} 24... Qxd2 {[%clk 0:01:41]} 25.
Rxb7 {[%clk 0:00:40.6]} 25... Ra2 {[%clk 0:01:39.9]} 26. Nxg6+ {[%clk
0:00:06.8]} 26... hxg6 {[%clk 0:01:39.2]} 27. Qh4+ {[%clk 0:00:07.7]} 27... Kg8
{[%clk 0:01:36.7]} 28. g4 {[%clk 0:00:08.1]} 28... Qxd3 {[%clk 0:01:29.8]} 29.
c5 {[%clk 0:00:08.5]} 29... Qf3+ {[%clk 0:01:28.7]} 30. Kg1 {[%clk 0:00:08.6]}
30... Qxb7 {[%clk 0:01:28.6]} 31. cxd6 {[%clk 0:00:07.6]} 31... Qd7 {[%clk
0:01:25]} 0-1

[Event "Early-Titled-Tuesday-Blitz-June-18-2024"]
[Site "Chess.com"]
[Date "2024.06.18"]
[Round "4"]
[White "Jeppesen08"]
[Black "chezzgirl04"]
[Result "0-1"]
[WhiteElo "2455"]
[BlackElo "2231"]
[TimeControl "180+1"]
[EndTime "8:40:04 PDT"]
[Termination "chezzgirl04 won by resignation"]

1. e4 {[%clk 0:03:00.9]} 1... e5 {[%clk 0:02:53.5]} 2. Bc4 {[%clk 0:03:00.2]}
2... Nc6 {[%clk 0:02:52.5]} 3. Nc3 {[%clk 0:03:00.3]} 3... Bc5 {[%clk
0:02:52.4]} 4. Nge2 {[%clk 0:02:55.7]} 4... Nge7 {[%clk 0:02:50.8]} 5. O-O
{[%clk 0:02:55.7]} 5... O-O {[%clk 0:02:51.2]} 6. d3 {[%clk 0:02:56.2]} 6... d6
{[%clk 0:02:51.1]} 7. Kh1 {[%clk 0:02:56.4]} 7... Kh8 {[%clk 0:02:51.3]} 8. f4
{[%clk 0:02:56.6]} 8... f5 {[%clk 0:02:51.5]} 9. Ng3 {[%clk 0:02:45.4]} 9...
exf4 {[%clk 0:02:41.5]} 10. Bxf4 {[%clk 0:02:43.7]} 10... Ne5 {[%clk 0:02:39.2]}
11. Bb3 {[%clk 0:02:19.1]} 11... Ng4 {[%clk 0:02:34.1]} 12. d4 {[%clk
0:02:11.9]} 12... Bb6 {[%clk 0:02:33.4]} 13. exf5 {[%clk 0:02:11]} 13... Nxf5
{[%clk 0:02:32.9]} 14. Qxg4 {[%clk 0:02:04.2]} 14... Ne3 {[%clk 0:02:23.7]} 15.
Qe2 {[%clk 0:01:15]} 15... Nxf1 {[%clk 0:02:23.1]} 16. Rxf1 {[%clk 0:01:15.5]}
16... Bxd4 {[%clk 0:02:19.6]} 17. Qd3 {[%clk 0:01:04.3]} 17... c5 {[%clk
0:02:09.5]} 18. Nd5 {[%clk 0:00:56.5]} 18... Be6 {[%clk 0:02:03.3]} 19. c3
{[%clk 0:00:55.2]} 19... Be5 {[%clk 0:01:38.6]} 20. Bxe5 {[%clk 0:00:51.5]}
20... dxe5 {[%clk 0:01:38.7]} 21. Qe4 {[%clk 0:00:47.6]} 21... Rxf1+ {[%clk
0:01:34.6]} 22. Nxf1 {[%clk 0:00:48.5]} 22... Qf8 {[%clk 0:01:34.4]} 23. Nfe3
{[%clk 0:00:45.7]} 23... Qf2 {[%clk 0:01:31.3]} 24. h3 {[%clk 0:00:45]} 24...
Rf8 {[%clk 0:01:23.3]} 25. Qxe5 {[%clk 0:00:37.5]} 25... Bxh3 {[%clk 0:01:21]}
26. gxh3 {[%clk 0:00:27.5]} 26... Qe1+ {[%clk 0:01:20.3]} 27. Kh2 {[%clk
0:00:24.6]} 27... Rf2+ {[%clk 0:01:18.5]} 28. Kg3 {[%clk 0:00:16.8]} 28... Rf5+
{[%clk 0:01:18.1]} 29. Kg4 {[%clk 0:00:14.6]} 29... Rxe5 {[%clk 0:01:18]} 30.
Nf5 {[%clk 0:00:15.1]} 30... Qe4+ {[%clk 0:01:16]} 31. Nf4 {[%clk 0:00:14.6]}
31... Qxf5+ {[%clk 0:01:16.1]} 32. Kf3 {[%clk 0:00:14.7]} 32... Re4 {[%clk
0:01:15.5]} 0-1

[Event "Early-Titled-Tuesday-Blitz-June-18-2024"]
[Site "Chess.com"]
[Date "2024.06.18"]
[Round "4"]
[White "scarabee43"]
[Black "Dixit_Nikhil"]
[Result "1-0"]
[WhiteElo "2881"]
[BlackElo "2609"]
[TimeControl "180+1"]
[EndTime "8:40:13 PDT"]
[Termination "scarabee43 won by resignation"]

1. Nf3 {[%clk 0:03:00.9]} 1... Nf6 {[%clk 0:02:59.7]} 2. c4 {[%clk 0:03:00]}
2... a6 {[%clk 0:02:58.6]} 3. Nc3 {[%clk 0:02:57.7]} 3... h6 {[%clk 0:02:59.1]}
4. g3 {[%clk 0:02:57.4]} 4... g6 {[%clk 0:02:59]} 5. Bg2 {[%clk 0:02:57.8]} 5...
b6 {[%clk 0:02:59.5]} 6. O-O {[%clk 0:02:54.1]} 6... Bb7 {[%clk 0:02:59.7]} 7.
Re1 {[%clk 0:02:52.8]} 7... d6 {[%clk 0:02:59.1]} 8. e4 {[%clk 0:02:52.6]} 8...
Nbd7 {[%clk 0:02:57.4]} 9. d4 {[%clk 0:02:50.8]} 9... e5 {[%clk 0:02:55.1]} 10.
d5 {[%clk 0:02:47.7]} 10... Bg7 {[%clk 0:02:52.2]} 11. b4 {[%clk 0:02:45.3]}
11... O-O {[%clk 0:02:52.2]} 12. a4 {[%clk 0:02:44.6]} 12... a5 {[%clk
0:02:52.2]} 13. Ba3 {[%clk 0:02:42.8]} 13... axb4 {[%clk 0:02:52.2]} 14. Bxb4
{[%clk 0:02:43.4]} 14... Nc5 {[%clk 0:02:47.7]} 15. a5 {[%clk 0:02:37.4]} 15...
bxa5 {[%clk 0:02:37]} 16. Bxa5 {[%clk 0:02:37.8]} 16... Qd7 {[%clk 0:02:31.9]}
17. Nd2 {[%clk 0:02:33.6]} 17... Ra6 {[%clk 0:02:18.7]} 18. Nb5 {[%clk
0:02:11.5]} 18... Rfa8 {[%clk 0:02:13.5]} 19. Bc3 {[%clk 0:02:11.9]} 19... Rxa1
{[%clk 0:02:09]} 20. Bxa1 {[%clk 0:02:12.1]} 20... h5 {[%clk 0:01:58.6]} 21. Nb3
{[%clk 0:02:06.6]} 21... Nxb3 {[%clk 0:01:51.5]} 22. Qxb3 {[%clk 0:02:06.7]}
22... Bh6 {[%clk 0:01:49.1]} 23. Bc3 {[%clk 0:02:03.4]} 23... h4 {[%clk
0:01:37.3]} 24. c5 {[%clk 0:01:39.3]} 24... dxc5 {[%clk 0:01:19.9]} 25. Bxe5
{[%clk 0:01:38.3]} 25... Ng4 {[%clk 0:01:20.1]} 26. Bb2 {[%clk 0:01:31]} 26...
hxg3 {[%clk 0:01:14.9]} 27. hxg3 {[%clk 0:01:30.2]} 27... Ba6 {[%clk 0:00:59.7]}
28. Qc3 {[%clk 0:01:24.7]} 28... f6 {[%clk 0:00:49.7]} 29. Na3 {[%clk
0:01:21.7]} 29... c4 {[%clk 0:00:23.3]} 30. Bh3 {[%clk 0:01:11.1]} 30... Bg7
{[%clk 0:00:15.9]} 31. f3 {[%clk 0:01:08.3]} 31... c6 {[%clk 0:00:14.8]} 32.
Bxg4 {[%clk 0:01:04.6]} 32... Qa7+ {[%clk 0:00:14.6]} 33. Kg2 {[%clk 0:01:03.2]}
33... cxd5 {[%clk 0:00:14.9]} 34. Be6+ {[%clk 0:01:02.9]} 34... Kf8 {[%clk
0:00:14.7]} 35. Qb4+ {[%clk 0:01:02.1]} 1-0

[Event "Early-Titled-Tuesday-Blitz-June-18-2024"]
[Site "Chess.com"]
[Date "2024.06.18"]
[Round "4"]
[White "Mikozovna"]
[Black "Weifd"]
[Result "1-0"]
[WhiteElo "2623"]
[BlackElo "2402"]
[TimeControl "180+1"]
[EndTime "8:40:13 PDT"]
[Termination "Mikozovna won by resignation"]

1. e4 {[%clk 0:03:00.9]} 1... c5 {[%clk 0:02:59.8]} 2. Nf3 {[%clk 0:02:59.9]}
2... e6 {[%clk 0:03:00.3]} 3. c3 {[%clk 0:02:58.5]} 3... Nf6 {[%clk 0:02:59.7]}
4. Bd3 {[%clk 0:02:54.5]} 4... d6 {[%clk 0:02:51.1]} 5. O-O {[%clk 0:02:51.8]}
5... Be7 {[%clk 0:02:48.9]} 6. Bc2 {[%clk 0:02:51.9]} 6... e5 {[%clk 0:02:46.7]}
7. d4 {[%clk 0:02:50.7]} 7... cxd4 {[%clk 0:02:45.5]} 8. cxd4 {[%clk 0:02:50.6]}
8... Bg4 {[%clk 0:02:46.2]} 9. dxe5 {[%clk 0:02:44.5]} 9... Bxf3 {[%clk
0:02:45.6]} 10. Ba4+ {[%clk 0:02:34.7]} 10... Nc6 {[%clk 0:02:29.8]} 11. Bxc6+
{[%clk 0:02:27.2]} 11... bxc6 {[%clk 0:02:29.8]} 12. Qa4 {[%clk 0:02:08.7]}
12... Be2 {[%clk 0:01:25]} 13. exf6 {[%clk 0:01:59.2]} 13... Bxf6 {[%clk
0:01:00.1]} 14. Qxc6+ {[%clk 0:01:57.7]} 14... Ke7 {[%clk 0:00:54.6]} 15. Re1
{[%clk 0:01:56.2]} 15... Rc8 {[%clk 0:00:53.9]} 16. Qb7+ {[%clk 0:01:52.5]}
16... Rc7 {[%clk 0:00:47.7]} 17. Qb4 {[%clk 0:01:50.4]} 17... Rc4 {[%clk
0:00:24.9]} 18. Qa3 {[%clk 0:01:33.7]} 18... Qc7 {[%clk 0:00:15.1]} 19. Nd2
{[%clk 0:01:31]} 19... Rc6 {[%clk 0:00:07.4]} 20. Rxe2 {[%clk 0:01:30.1]} 20...
Rxc1+ {[%clk 0:00:06.8]} 21. Rxc1 {[%clk 0:01:30.1]} 21... Qxc1+ {[%clk
0:00:06.3]} 22. Nf1 {[%clk 0:01:30.2]} 22... Be5 {[%clk 0:00:04]} 23. Qxa7+
{[%clk 0:01:29.5]} 23... Kf6 {[%clk 0:00:04.7]} 24. Qe3 {[%clk 0:01:28.1]} 24...
Bxh2+ {[%clk 0:00:03.4]} 25. Kxh2 {[%clk 0:01:25.2]} 25... Qxf1 {[%clk
0:00:04.1]} 26. Rd2 {[%clk 0:01:23.9]} 26... Rd8 {[%clk 0:00:02.9]} 27. e5+
{[%clk 0:01:22.2]} 27... Kg6 {[%clk 0:00:02.1]} 28. Qe4+ {[%clk 0:01:20.5]}
28... Kh6 {[%clk 0:00:02.1]} 29. Qh4+ {[%clk 0:01:14.4]} 29... Kg6 {[%clk
0:00:01.9]} 30. Qxd8 {[%clk 0:01:14.4]} 30... Qc4 {[%clk 0:00:01.2]} 31. Qxd6+
{[%clk 0:01:12.1]} 31... Kf5 {[%clk 0:00:01.6]} 32. Qd3+ {[%clk 0:01:10.7]} 1-0

[Event "Early-Titled-Tuesday-Blitz-June-18-2024"]
[Site "Chess.com"]
[Date "2024.06.18"]
[Round "4"]
[White "Rodalquilar"]
[Black "masnyszachistaaa"]
[Result "1-0"]
[WhiteElo "2797"]
[BlackElo "2574"]
[TimeControl "180+1"]
[EndTime "8:40:14 PDT"]
[Termination "Rodalquilar won on time"]

1. d4 {[%clk 0:03:00.9]} 1... d5 {[%clk 0:02:54.7]} 2. Nf3 {[%clk 0:03:00.9]}
2... Nf6 {[%clk 0:02:52.8]} 3. Bf4 {[%clk 0:03:00.7]} 3... c5 {[%clk 0:02:24.9]}
4. e3 {[%clk 0:03:00.6]} 4... Nc6 {[%clk 0:02:25.1]} 5. c3 {[%clk 0:03:00.8]}
5... Qb6 {[%clk 0:02:18.8]} 6. Qc2 {[%clk 0:03:00.9]} 6... Bf5 {[%clk
0:02:02.6]} 7. dxc5 {[%clk 0:03:00]} 7... Bxc2 {[%clk 0:01:55.2]} 8. cxb6 {[%clk
0:02:59.1]} 8... axb6 {[%clk 0:01:55.8]} 9. Na3 {[%clk 0:02:59.4]} 9... Rxa3
{[%clk 0:01:38.9]} 10. bxa3 {[%clk 0:03:00.3]} 10... e6 {[%clk 0:01:37.2]} 11.
Bb5 {[%clk 0:02:39.1]} 11... Bxa3 {[%clk 0:00:46.6]} 12. Nd4 {[%clk 0:02:38.6]}
12... Bg6 {[%clk 0:00:44.5]} 13. Ke2 {[%clk 0:02:04.5]} 13... Kd7 {[%clk
0:00:34.4]} 14. f3 {[%clk 0:01:44]} 14... Bb2 {[%clk 0:00:26.8]} 15. Rad1 {[%clk
0:01:43.3]} 15... Bxc3 {[%clk 0:00:25.8]} 16. e4 {[%clk 0:00:57.9]} 16... Bxd4
{[%clk 0:00:12.9]} 17. Rxd4 {[%clk 0:00:57.4]} 17... Ke7 {[%clk 0:00:13.5]} 18.
Bxc6 {[%clk 0:00:51.8]} 18... bxc6 {[%clk 0:00:14.4]} 19. Ra4 {[%clk 0:00:45.1]}
19... dxe4 {[%clk 0:00:11.3]} 20. Ra7+ {[%clk 0:00:44.4]} 20... Nd7 {[%clk
0:00:09]} 21. Rd1 {[%clk 0:00:43]} 21... Rd8 {[%clk 0:00:09]} 22. Bc7 {[%clk
0:00:40.6]} 1-0

[Event "Early-Titled-Tuesday-Blitz-June-18-2024"]
[Site "Chess.com"]
[Date "2024.06.18"]
[Round "4"]
[White "HajiyevKanan"]
[Black "N_I_Chess"]
[Result "1-0"]
[WhiteElo "2515"]
[BlackElo "2319"]
[TimeControl "180+1"]
[EndTime "8:40:14 PDT"]
[Termination "HajiyevKanan won on time"]

1. b3 {[%clk 0:03:00.9]} 1... d5 {[%clk 0:02:58]} 2. Bb2 {[%clk 0:03:01.8]} 2...
Bf5 {[%clk 0:02:53.8]} 3. e3 {[%clk 0:03:01.9]} 3... e6 {[%clk 0:02:50.5]} 4.
Nf3 {[%clk 0:03:02.4]} 4... Nd7 {[%clk 0:02:49.7]} 5. Be2 {[%clk 0:03:00.8]}
5... Ngf6 {[%clk 0:02:47.2]} 6. O-O {[%clk 0:03:00.8]} 6... Bd6 {[%clk
0:02:46.7]} 7. c4 {[%clk 0:03:00.9]} 7... O-O {[%clk 0:02:44.1]} 8. d4 {[%clk
0:03:00.2]} 8... h6 {[%clk 0:02:24.9]} 9. Nbd2 {[%clk 0:02:59.2]} 9... Qe7
{[%clk 0:02:05.3]} 10. Re1 {[%clk 0:02:58.7]} 10... c6 {[%clk 0:01:58.2]} 11.
Qc1 {[%clk 0:02:58.1]} 11... a5 {[%clk 0:01:54.6]} 12. a3 {[%clk 0:02:55.7]}
12... Bg4 {[%clk 0:01:34.6]} 13. Bd3 {[%clk 0:02:49.4]} 13... e5 {[%clk
0:01:18.1]} 14. dxe5 {[%clk 0:02:42.7]} 14... Nxe5 {[%clk 0:01:17.3]} 15. Nxe5
{[%clk 0:02:38.9]} 15... Bxe5 {[%clk 0:01:18.2]} 16. cxd5 {[%clk 0:02:19]} 16...
Nxd5 {[%clk 0:01:16.8]} 17. Nc4 {[%clk 0:02:18.8]} 17... Bc7 {[%clk 0:01:09.6]}
18. Qc2 {[%clk 0:02:08]} 18... Qh4 {[%clk 0:00:52.9]} 19. g3 {[%clk 0:02:07.6]}
19... Qh5 {[%clk 0:00:47.8]} 20. e4 {[%clk 0:01:56.2]} 20... Nf4 {[%clk
0:00:26.8]} 21. Qc3 {[%clk 0:01:31.3]} 21... f6 {[%clk 0:00:15.6]} 22. Bf1
{[%clk 0:01:19.6]} 22... Nh3+ {[%clk 0:00:03.6]} 23. Kg2 {[%clk 0:01:16.6]}
23... Ng5 {[%clk 0:00:02.4]} 24. h4 {[%clk 0:01:05.2]} 24... Bf3+ {[%clk
0:00:01.8]} 25. Kg1 {[%clk 0:01:00.5]} 25... Nf7 {[%clk 0:00:02]} 26. Bg2 {[%clk
0:00:55.2]} 1-0

[Event "Early-Titled-Tuesday-Blitz-June-18-2024"]
[Site "Chess.com"]
[Date "2024.06.18"]
[Round "4"]
[White "InadaC"]
[Black "patzer-reloaded"]
[Result "1-0"]
[WhiteElo "2254"]
[BlackElo "2465"]
[TimeControl "180+1"]
[EndTime "8:40:17 PDT"]
[Termination "InadaC won on time"]

1. Nf3 {[%clk 0:03:00.9]} 1... d6 {[%clk 0:03:00.9]} 2. b3 {[%clk 0:02:59]} 2...
Nf6 {[%clk 0:03:01.8]} 3. Bb2 {[%clk 0:02:58.5]} 3... e5 {[%clk 0:03:02.4]} 4.
d4 {[%clk 0:02:57]} 4... e4 {[%clk 0:03:01.4]} 5. Nfd2 {[%clk 0:02:56.7]} 5...
d5 {[%clk 0:03:01.6]} 6. c4 {[%clk 0:02:55.9]} 6... c6 {[%clk 0:03:01.4]} 7. e3
{[%clk 0:02:56]} 7... Bd6 {[%clk 0:03:00.3]} 8. Be2 {[%clk 0:02:56.3]} 8... O-O
{[%clk 0:02:59.6]} 9. Nc3 {[%clk 0:02:55.3]} 9... a6 {[%clk 0:02:57]} 10. h4
{[%clk 0:02:54.4]} 10... Be6 {[%clk 0:02:54.7]} 11. h5 {[%clk 0:02:54.3]} 11...
b5 {[%clk 0:02:40]} 12. c5 {[%clk 0:02:53.5]} 12... Bc7 {[%clk 0:02:39.2]} 13.
h6 {[%clk 0:02:53.8]} 13... g6 {[%clk 0:02:38.5]} 14. Qc2 {[%clk 0:02:53.3]}
14... Nbd7 {[%clk 0:02:28.1]} 15. O-O-O {[%clk 0:02:50.4]} 15... a5 {[%clk
0:02:24.3]} 16. f4 {[%clk 0:02:47.7]} 16... b4 {[%clk 0:01:50.7]} 17. Na4 {[%clk
0:02:43.9]} 17... Ng4 {[%clk 0:01:47.1]} 18. Bxg4 {[%clk 0:02:36]} 18... Bxg4
{[%clk 0:01:46.3]} 19. Rdf1 {[%clk 0:02:35.3]} 19... f5 {[%clk 0:01:40.8]} 20.
g3 {[%clk 0:02:25.8]} 20... Nf6 {[%clk 0:01:31.8]} 21. Kb1 {[%clk 0:02:22.8]}
21... Kh8 {[%clk 0:01:29.1]} 22. Rc1 {[%clk 0:02:21.3]} 22... Nh5 {[%clk
0:01:22.2]} 23. Nf1 {[%clk 0:02:12]} 23... Rb8 {[%clk 0:01:20.8]} 24. Nb6 {[%clk
0:02:04]} 24... Bxb6 {[%clk 0:01:15.2]} 25. cxb6 {[%clk 0:02:03.5]} 25... Qxb6
{[%clk 0:01:00.6]} 26. Qxc6 {[%clk 0:02:01.7]} 26... Qxc6 {[%clk 0:00:58.9]} 27.
Rxc6 {[%clk 0:02:01.6]} 27... Rfc8 {[%clk 0:00:55.5]} 28. Rc5 {[%clk 0:02:01.4]}
28... Be2 {[%clk 0:00:40]} 29. Nd2 {[%clk 0:01:43.2]} 29... Bd3+ {[%clk
0:00:18.1]} 30. Ka1 {[%clk 0:01:40.2]} 30... Nxg3 {[%clk 0:00:17.6]} 31. Rhc1
{[%clk 0:01:37.5]} 31... Rxc5 {[%clk 0:00:16.8]} 32. dxc5+ {[%clk 0:01:36.9]}
32... Kg8 {[%clk 0:00:16.7]} 33. c6 {[%clk 0:01:36.6]} 33... Rc8 {[%clk
0:00:16.6]} 34. c7 {[%clk 0:01:34.6]} 34... Kf7 {[%clk 0:00:15.2]} 35. Be5
{[%clk 0:01:34.6]} 35... Ke6 {[%clk 0:00:13.5]} 36. Rc6+ {[%clk 0:01:34]} 36...
Kd7 {[%clk 0:00:13]} 37. Rc5 {[%clk 0:01:33.2]} 37... Ke6 {[%clk 0:00:05.2]} 38.
Rxa5 {[%clk 0:01:32.1]} 38... d4 {[%clk 0:00:04]} 39. exd4 {[%clk 0:01:16.7]}
39... e3 {[%clk 0:00:03.7]} 40. Nf3 {[%clk 0:01:16.9]} 40... e2 {[%clk
0:00:01.3]} 41. Ne1 {[%clk 0:01:17.1]} 1-0